Workbook

Sheet Daftar Inventaris
C1: Daftar Inventaris | F1: Sorot item untuk menyusun ulang? | H1: Ya
B3: Item yang ditandai untuk disusun ulang | C3: ID Inventaris | D3: Nama | E3: Deskripsi | F3: Harga Satuan | G3: Kuantitas dalam Stok | H3: Nilai Inventaris | I3: Tingkat Penyusunan Ulang | J3: Waktu Penyusunan Ulang dalam Hari | K3: Kuantitas dalam Penyusunan Ulang | L3: Dihentikan?
B4: =IFERROR((DaftarInventaris[[#This Row],[Kuantitas dalam Stok]]<=DaftarInventaris[[#This Row],[Tingkat Penyusunan Ulang]])*(DaftarInventaris[[#This Row],[Dihentikan?]]="")*nilSoroti,0) -> 1 | C4: IN0001 | D4: Item 1 | E4: Desk 1 | F4: Rp5,100.00 | G4: 25 | H4: =DaftarInventaris[[#This Row],[Harga Satuan]]*DaftarInventaris[[#This Row],[Kuantitas dalam Stok]] -> Rp127,500.00 | I4: 29 | J4: 13 | K4: 50
B5: =IFERROR((DaftarInventaris[[#This Row],[Kuantitas dalam Stok]]<=DaftarInventaris[[#This Row],[Tingkat Penyusunan Ulang]])*(DaftarInventaris[[#This Row],[Dihentikan?]]="")*nilSoroti,0) -> 1 | C5: IN0002 | D5: Item 2 | E5: Desk 2 | F5: Rp9,300.00 | G5: 132 | H5: =DaftarInventaris[[#This Row],[Harga Satuan]]*DaftarInventaris[[#This Row],[Kuantitas dalam Stok]] -> Rp1,227,600.00 | I5: 231 | J5: 4 | K5: 50
B6: =IFERROR((DaftarInventaris[[#This Row],[Kuantitas dalam Stok]]<=DaftarInventaris[[#This Row],[Tingkat Penyusunan Ulang]])*(DaftarInventaris[[#This Row],[Dihentikan?]]="")*nilSoroti,0) -> 0 | C6: IN0003 | D6: Item 3 | E6: Desk 3 | F6: Rp5,700.00 | G6: 151 | H6: =DaftarInventaris[[#This Row],[Harga Satuan]]*DaftarInventaris[[#This Row],[Kuantitas dalam Stok]] -> Rp860,700.00 | I6: 114 | J6: 11 | K6: 150
B7: =IFERROR((DaftarInventaris[[#This Row],[Kuantitas dalam Stok]]<=DaftarInventaris[[#This Row],[Tingkat Penyusunan Ulang]])*(DaftarInventaris[[#This Row],[Dihentikan?]]="")*nilSoroti,0) -> 0 | C7: IN0004 | D7: Item 4 | E7: Desk 4 | F7: Rp1,900.00 | G7: 186 | H7: =DaftarInventaris[[#This Row],[Harga Satuan]]*DaftarInventaris[[#This Row],[Kuantitas dalam Stok]] -> Rp353,400.00 | I7: 158 | J7: 6 | K7: 50
B8: =IFERROR((DaftarInventaris[[#This Row],[Kuantitas dalam Stok]]<=DaftarInventaris[[#This Row],[Tingkat Penyusunan Ulang]])*(DaftarInventaris[[#This Row],[Dihentikan?]]="")*nilSoroti,0) -> 0 | C8: IN0005 | D8: Item 5 | E8: Desk 5 | F8: Rp7,500.00 | G8: 62 | H8: =DaftarInventaris[[#This Row],[Harga Satuan]]*DaftarInventaris[[#This Row],[Kuantitas dalam Stok]] -> Rp465,000.00 | I8: 39 | J8: 12 | K8: 50
B9: =IFERROR((DaftarInventaris[[#This Row],[Kuantitas dalam Stok]]<=DaftarInventaris[[#This Row],[Tingkat Penyusunan Ulang]])*(DaftarInventaris[[#This Row],[Dihentikan?]]="")*nilSoroti,0) -> 1 | C9: IN0006 | D9: Item 6 | E9: Desk 6 | F9: Rp1,100.00 | G9: 5 | H9: =DaftarInventaris[[#This Row],[Harga Satuan]]*DaftarInventaris[[#This Row],[Kuantitas dalam Stok]] -> Rp5,500.00 | I9: 9 | J9: 13 | K9: 150
B10: =IFERROR((DaftarInventaris[[#This Row],[Kuantitas dalam Stok]]<=DaftarInventaris[[#This Row],[Tingkat Penyusunan Ulang]])*(DaftarInventaris[[#This Row],[Dihentikan?]]="")*nilSoroti,0) -> 0 | C10: IN0007 | D10: Item 7 | E10: Desk 7 | F10: Rp5,600.00 | G10: 58 | H10: =DaftarInventaris[[#This Row],[Harga Satuan]]*DaftarInventaris[[#This Row],[Kuantitas dalam Stok]] -> Rp324,800.00 | I10: 109 | J10: 7 | K10: 100 | L10: ya
B11: =IFERROR((DaftarInventaris[[#This Row],[Kuantitas dalam Stok]]<=DaftarInventaris[[#This Row],[Tingkat Penyusunan Ulang]])*(DaftarInventaris[[#This Row],[Dihentikan?]]="")*nilSoroti,0) -> 1 | C11: IN0008 | D11: Item 8 | E11: Desk 8 | F11: Rp3,800.00 | G11: 101 | H11: =DaftarInventaris[[#This Row],[Harga Satuan]]*DaftarInventaris[[#This Row],[Kuantitas dalam Stok]] -> Rp383,800.00 | I11: 162 | J11: 3 | K11: 100
B12: =IFERROR((DaftarInventaris[[#This Row],[Kuantitas dalam Stok]]<=DaftarInventaris[[#This Row],[Tingkat Penyusunan Ulang]])*(DaftarInventaris[[#This Row],[Dihentikan?]]="")*nilSoroti,0) -> 0 | C12: IN0009 | D12: Item 9 | E12: Desk 9 | F12: Rp5,900.00 | G12: 122 | H12: =DaftarInventaris[[#This Row],[Harga Satuan]]*DaftarInventaris[[#This Row],[Kuantitas dalam Stok]] -> Rp719,800.00 | I12: 82 | J12: 3 | K12: 150
B13: =IFERROR((DaftarInventaris[[#This Row],[Kuantitas dalam Stok]]<=DaftarInventaris[[#This Row],[Tingkat Penyusunan Ulang]])*(DaftarInventaris[[#This Row],[Dihentikan?]]="")*nilSoroti,0) -> 1 | C13: IN0010 | D13: Item 10 | E13: Desk 10 | F13: Rp5,000.00 | G13: 175 | H13: =DaftarInventaris[[#This Row],[Harga Satuan]]*DaftarInventaris[[#This Row],[Kuantitas dalam Stok]] -> Rp875,000.00 | I13: 283 | J13: 8 | K13: 150
B14: =IFERROR((DaftarInventaris[[#This Row],[Kuantitas dalam Stok]]<=DaftarInventaris[[#This Row],[Tingkat Penyusunan Ulang]])*(DaftarInventaris[[#This Row],[Dihentikan?]]="")*nilSoroti,0) -> 1 | C14: IN0011 | D14: Item 11 | E14: Desk 11 | F14: Rp5,900.00 | G14: 176 | H14: =DaftarInventaris[[#This Row],[Harga Satuan]]*DaftarInventaris[[#This Row],[Kuantitas dalam Stok]] -> Rp1,038,400.00 | I14: 229 | J14: 1 | K14: 100
B15: =IFERROR((DaftarInventaris[[#This Row],[Kuantitas dalam Stok]]<=DaftarInventaris[[#This Row],[Tingkat Penyusunan Ulang]])*(DaftarInventaris[[#This Row],[Dihentikan?]]="")*nilSoroti,0) -> 1 | C15: IN0012 | D15: Item 12 | E15: Desk 12 | F15: Rp1,800.00 | G15: 22 | H15: =DaftarInventaris[[#This Row],[Harga Satuan]]*DaftarInventaris[[#This Row],[Kuantitas dalam Stok]] -> Rp39,600.00 | I15: 36 | J15: 12 | K15: 50
B16: =IFERROR((DaftarInventaris[[#This Row],[Kuantitas dalam Stok]]<=DaftarInventaris[[#This Row],[Tingkat Penyusunan Ulang]])*(DaftarInventaris[[#This Row],[Dihentikan?]]="")*nilSoroti,0) -> 1 | C16: IN0013 | D16: Item 13 | E16: Desk 13 | F16: Rp2,600.00 | G16: 72 | H16: =DaftarInventaris[[#This Row],[Harga Satuan]]*DaftarInventaris[[#This Row],[Kuantitas dalam Stok]] -> Rp187,200.00 | I16: 102 | J16: 9 | K16: 100
B17: =IFERROR((DaftarInventaris[[#This Row],[Kuantitas dalam Stok]]<=DaftarInventaris[[#This Row],[Tingkat Penyusunan Ulang]])*(DaftarInventaris[[#This Row],[Dihentikan?]]="")*nilSoroti,0) -> 1 | C17: IN0014 | D17: Item 14 | E17: Desk 14 | F17: Rp4,200.00 | G17: 62 | H17: =DaftarInventaris[[#This Row],[Harga Satuan]]*DaftarInventaris[[#This Row],[Kuantitas dalam Stok]] -> Rp260,400.00 | I17: 83 | J17: 2 | K17: 100
B18: =IFERROR((DaftarInventaris[[#This Row],[Kuantitas dalam Stok]]<=DaftarInventaris[[#This Row],[Tingkat Penyusunan Ulang]])*(DaftarInventaris[[#This Row],[Dihentikan?]]="")*nilSoroti,0) -> 0 | C18: IN0015 | D18: Item 15 | E18: Desk 15 | F18: Rp3,200.00 | G18: 46 | H18: =DaftarInventaris[[#This Row],[Harga Satuan]]*DaftarInventaris[[#This Row],[Kuantitas dalam Stok]] -> Rp147,200.00 | I18: 23 | J18: 15 | K18: 50
B19: =IFERROR((DaftarInventaris[[#This Row],[Kuantitas dalam Stok]]<=DaftarInventaris[[#This Row],[Tingkat Penyusunan Ulang]])*(DaftarInventaris[[#This Row],[Dihentikan?]]="")*nilSoroti,0) -> 1 | C19: IN0016 | D19: Item 16 | E19: Desk 16 | F19: Rp9,000.00 | G19: 96 | H19: =DaftarInventaris[[#This Row],[Harga Satuan]]*DaftarInventaris[[#This Row],[Kuantitas dalam Stok]] -> Rp864,000.00 | I19: 180 | J19: 3 | K19: 50
B20: =IFERROR((DaftarInventaris[[#This Row],[Kuantitas dalam Stok]]<=DaftarInventaris[[#This Row],[Tingkat Penyusunan Ulang]])*(DaftarInventaris[[#This Row],[Dihentikan?]]="")*nilSoroti,0) -> 0 | C20: IN0017 | D20: Item 17 | E20: Desk 17 | F20: Rp9,700.00 | G20: 57 | H20: =DaftarInventaris[[#This Row],[Harga Satuan]]*DaftarInventaris[[#This Row],[Kuantitas dalam Stok]] -> Rp552,900.00 | I20: 98 | J20: 12 | K20: 50 | L20: Ya
B21: =IFERROR((DaftarInventaris[[#This Row],[Kuantitas dalam Stok]]<=DaftarInventaris[[#This Row],[Tingkat Penyusunan Ulang]])*(DaftarInventaris[[#This Row],[Dihentikan?]]="")*nilSoroti,0) -> 1 | C21: IN0018 | D21: Item 18 | E21: Desk 18 | F21: Rp1,200.00 | G21: 6 | H21: =DaftarInventaris[[#This Row],[Harga Satuan]]*DaftarInventaris[[#This Row],[Kuantitas dalam Stok]] -> Rp7,200.00 | I21: 7 | J21: 13 | K21: 50
B22: =IFERROR((DaftarInventaris[[#This Row],[Kuantitas dalam Stok]]<=DaftarInventaris[[#This Row],[Tingkat Penyusunan Ulang]])*(DaftarInventaris[[#This Row],[Dihentikan?]]="")*nilSoroti,0) -> 1 | C22: IN0019 | D22: Item 19 | E22: Desk 19 | F22: Rp8,200.00 | G22: 143 | H22: =DaftarInventaris[[#This Row],[Harga Satuan]]*DaftarInventaris[[#This Row],[Kuantitas dalam Stok]] -> Rp1,172,600.00 | I22: 164 | J22: 12 | K22: 150
B23: =IFERROR((DaftarInventaris[[#This Row],[Kuantitas dalam Stok]]<=DaftarInventaris[[#This Row],[Tingkat Penyusunan Ulang]])*(DaftarInventaris[[#This Row],[Dihentikan?]]="")*nilSoroti,0) -> 0 | C23: IN0020 | D23: Item 20 | E23: Desk 20 | F23: Rp1,600.00 | G23: 124 | H23: =DaftarInventaris[[#This Row],[Harga Satuan]]*DaftarInventaris[[#This Row],[Kuantitas dalam Stok]] -> Rp198,400.00 | I23: 113 | J23: 14 | K23: 50
B24: =IFERROR((DaftarInventaris[[#This Row],[Kuantitas dalam Stok]]<=DaftarInventaris[[#This Row],[Tingkat Penyusunan Ulang]])*(DaftarInventaris[[#This Row],[Dihentikan?]]="")*nilSoroti,0) -> 0 | C24: IN0021 | D24: Item 21 | E24: Desk 21 | F24: Rp1,900.00 | G24: 112 | H24: =DaftarInventaris[[#This Row],[Harga Satuan]]*DaftarInventaris[[#This Row],[Kuantitas dalam Stok]] -> Rp212,800.00 | I24: 75 | J24: 11 | K24: 50
B25: =IFERROR((DaftarInventaris[[#This Row],[Kuantitas dalam Stok]]<=DaftarInventaris[[#This Row],[Tingkat Penyusunan Ulang]])*(DaftarInventaris[[#This Row],[Dihentikan?]]="")*nilSoroti,0) -> 0 | C25: IN0022 | D25: Item 22 | E25: Desk 22 | F25: Rp2,400.00 | G25: 182 | H25: =DaftarInventaris[[#This Row],[Harga Satuan]]*DaftarInventaris[[#This Row],[Kuantitas dalam Stok]] -> Rp436,800.00 | I25: 132 | J25: 15 | K25: 150
B26: =IFERROR((DaftarInventaris[[#This Row],[Kuantitas dalam Stok]]<=DaftarInventaris[[#This Row],[Tingkat Penyusunan Ulang]])*(DaftarInventaris[[#This Row],[Dihentikan?]]="")*nilSoroti,0) -> 0 | C26: IN0023 | D26: Item 23 | E26: Desk 23 | F26: Rp2,900.00 | G26: 106 | H26: =DaftarInventaris[[#This Row],[Harga Satuan]]*DaftarInventaris[[#This Row],[Kuantitas dalam Stok]] -> Rp307,400.00 | I26: 142 | J26: 1 | K26: 150 | L26: Ya
B27: =IFERROR((DaftarInventaris[[#This Row],[Kuantitas dalam Stok]]<=DaftarInventaris[[#This Row],[Tingkat Penyusunan Ulang]])*(DaftarInventaris[[#This Row],[Dihentikan?]]="")*nilSoroti,0) -> 0 | C27: IN0024 | D27: Item 24 | E27: Desk 24 | F27: Rp7,500.00 | G27: 173 | H27: =DaftarInventaris[[#This Row],[Harga Satuan]]*DaftarInventaris[[#This Row],[Kuantitas dalam Stok]] -> Rp1,297,500.00 | I27: 127 | J27: 9 | K27: 100
B28: =IFERROR((DaftarInventaris[[#This Row],[Kuantitas dalam Stok]]<=DaftarInventaris[[#This Row],[Tingkat Penyusunan Ulang]])*(DaftarInventaris[[#This Row],[Dihentikan?]]="")*nilSoroti,0) -> 0 | C28: IN0025 | D28: Item 25 | E28: Desk 25 | F28: Rp1,400.00 | G28: 28 | H28: =DaftarInventaris[[#This Row],[Harga Satuan]]*DaftarInventaris[[#This Row],[Kuantitas dalam Stok]] -> Rp39,200.00 | I28: 21 | J28: 8 | K28: 50
